fUSD/lending_fUSD_20250302
["ID","MTS","AMOUNT","RATE_DAILY","PERIOD"]
[355120833,1740921046094,-1859.83,0.00027154,2]
[355120834,1740921046104,-1507.67,0.00027191,2]
[355120835,1740921046114,-500.0,0.00027191,2]
[355120836,1740921046123,-4175.06,0.00027191,2]
[355120837,1740921046134,-1872.75,0.00027191,2]
[355120838,1740921046144,-4930.0,0.00027191,2]
[355120839,1740921046154,-3137.52,0.00027191,2]
[355120840,1740921046163,-4457.27,0.00027191,2]
[355120841,1740921046173,-721.9,0.00027191,2]
[355120842,1740921046183,-2426.84,0.00027191,2]
[355120843,1740921046193,-1181.52,0.00027191,2]
[355120844,1740921046203,-1320.81,0.00027191,2]
[355120845,1740921046214,-2012.98,0.00027191,2]
[355120846,1740921046223,-2245.9,0.00027191,2]
[355120847,1740921046233,-1932.16,0.00027191,2]
[355120848,1740921046243,-1204.01,0.00027191,2]
[355120849,1740921046253,-1010.77,0.00027191,2]
[355120850,1740921046262,-578.3,0.00027191,2]
[355120851,1740921046271,-1827.05,0.00027191,2]
[355120852,1740921046280,-420.0,0.00027269,2]
[355120853,1740921046291,-2686.08,0.00027395,2]
[355120854,1740921046300,-2130.94,0.00027396,2]
[355120855,1740921046309,-500.0,0.00027396,2]
[355120856,1740921046319,-500.0,0.00027396,2]
[355120857,1740921046328,-764.8,0.00027396,2]
[355120858,1740921046338,-1873.41,0.00027396,2]
[355120859,1740921046347,-1559.77,0.00027396,2]
[355120860,1740921046357,-685.32,0.00027396,2]
[355120861,1740921046366,-2490.42,0.00027396,2]
[355120862,1740921046376,-2300.39,0.00027396,2]
[355120863,1740921046386,-3043.48,0.00027396,2]
[355120864,1740921046395,-500.0,0.00027396,2]
[355120865,1740921046405,-1639.31,0.00027396,2]
[355120866,1740921046415,-500.0,0.00027396,2]
[355120867,1740921046425,-3917.93,0.00027396,2]
[355120868,1740921046436,-1327.93,0.00027396,2]
[355120869,1740921046445,-500.0,0.00027396,2]
[355120870,1740921046454,-1982.59,0.00027396,2]
[355120871,1740921046465,-1008.47023034,0.00027397,2]
[355120872,1740921046474,-500.0,0.00027397,2]
[355120873,1740921046484,-1139.99,0.00027397,2]
[355120874,1740921046493,-760.17,0.00027397,2]
[355120875,1740921046503,-500.0,0.00027397,2]
[355120876,1740921046513,-1565.61,0.00027397,2]
[355120877,1740921046522,-704.29,0.00027397,2]
[355120878,1740921046531,-500.0,0.00027397,2]
[355120879,1740921046541,-1079.31,0.00027397,2]
[355120880,1740921046550,-500.0,0.00027397,2]
[355120881,1740921046560,-500.0,0.00027397,2]
[355120882,1740921046569,-500.0,0.00027397,2]
[355120883,1740921046578,-500.0,0.00027397,2]
[355120884,1740921046587,-4119.12,0.00027397,2]
[355120885,1740921046597,-3871.79,0.00027397,2]
[355120886,1740921046606,-500.0,0.00027397,2]
[355120887,1740921046616,-787.31,0.00027397,2]
[355120888,1740921046625,-717.47,0.00027397,2]
[355120889,1740921046635,-1235.29,0.00027397,2]
[355120890,1740921046644,-4875.99,0.00027397,2]
[355120891,1740921046654,-5586.84,0.00027397,2]
[355120892,1740921046663,-500.0,0.00027397,2]
[355120893,1740921046673,-1226.77,0.00027397,2]
[355120894,1740921046682,-678.44,0.00027397,2]
[355120895,1740921046693,-1429.87,0.00027397,2]
[355120896,1740921046702,-500.0,0.00027397,2]
[355120897,1740921046711,-1233.83,0.00027397,2]
[355120898,1740921046721,-5234.1,0.00027397,2]
[355120899,1740921046730,-1000.0,0.00027397,7]
[355120900,1740921046740,-1000.0,0.00027397,7]
[355120901,1740921046750,-1000.0,0.00027397,7]
[355120902,1740921046760,-1000.0,0.00027397,7]
[355120903,1740921046769,-928.83,0.00027397,2]
[355120904,1740921046779,-1000.0,0.00027397,7]
[355120905,1740921046789,-1000.0,0.00027397,7]
[355120906,1740921046799,-1000.0,0.00027397,7]
[355120907,1740921046809,-1000.0,0.00027397,7]
[355120908,1740921046819,-4400.11,0.00027397,2]
[355120909,1740921046828,-2112.01,0.00027397,2]
[355120910,1740921046838,-150.0,0.00027397,2]
[355120911,1740921046849,-150.0,0.00027406,2]
[355120912,1740921046859,-552.46,0.00027428,2]
[355120913,1740921046868,-714.7,0.00027428,2]
[355120914,1740921046878,-1855.84,0.00027428,2]
[355120915,1740921046888,-579.04,0.00027428,2]
[355120916,1740921046897,-7702.05,0.00027428,2]
[355120917,1740921046907,-1552.0,0.00027428,2]
[355120918,1740921046916,-500.0,0.00027428,2]
[355120919,1740921046927,-500.0,0.00027428,2]
[355120920,1740921046938,-4290.24,0.00027428,2]
[355120921,1740921046948,-500.0,0.00027428,2]
[355120922,1740921046959,-6664.78,0.00027428,2]
[355120923,1740921046969,-1859.83,0.00027428,2]
[355120924,1740921046979,-1507.67,0.00027465,2]
[355120925,1740921046989,-500.0,0.00027465,2]
[355120926,1740921047000,-4175.06,0.00027465,2]
[355120927,1740921047010,-1872.75,0.00027465,2]
[355120928,1740921047020,-4930.0,0.00027465,2]
[355120929,1740921047030,-3137.52,0.00027465,2]
[355120930,1740921047040,-4457.27,0.00027465,2]
[355120931,1740921047050,-721.9,0.00027465,2]
[355120932,1740921047059,-2426.84,0.00027465,2]
[355120933,1740921047069,-1181.52,0.00027465,2]
[355120934,1740921047078,-1320.81,0.00027465,2]
[355120935,1740921047088,-2012.98,0.00027465,2]
[355120936,1740921047098,-2245.9,0.00027465,2]
[355120937,1740921047108,-1932.16,0.00027465,2]
[355120938,1740921047118,-1204.01,0.00027465,2]
[355120939,1740921047317,-1010.77,0.00027465,2]
[355120940,1740921047327,-578.3,0.00027465,2]
[355120941,1740921047337,-1827.05,0.00027465,2]
[355120942,1740921047347,-5212.96431868,0.00027525,2]
[355120943,1740921047357,-2148.94253568,0.0002754,2]
[355120944,1740921047367,-450.0,0.00027614,2]
[355120945,1740921047377,-2686.08,0.00027669,2]
[355120946,1740921047386,-2130.94,0.0002767,2]
[355120947,1740921047396,-500.0,0.0002767,2]
[355120948,1740921047406,-500.0,0.0002767,2]
[355120949,1740921047416,-764.8,0.0002767,2]
[355120950,1740921047425,-1873.41,0.0002767,2]
[355120951,1740921047435,-1559.77,0.0002767,2]
[355120952,1740921047445,-685.32,0.0002767,2]
[355120953,1740921047454,-2490.42,0.0002767,2]
[355120954,1740921047465,-2300.39,0.0002767,2]
[355120955,1740921047475,-3043.48,0.0002767,2]
[355120956,1740921047485,-500.0,0.0002767,2]
[355120957,1740921047495,-1639.31,0.0002767,2]
[355120958,1740921047504,-500.0,0.0002767,2]
[355120959,1740921047514,-3917.93,0.0002767,2]
[355120960,1740921047524,-1327.93,0.0002767,2]
[355120961,1740921047534,-500.0,0.0002767,2]
[355120962,1740921047543,-1982.59,0.0002767,2]
[355120963,1740921047552,-500.0,0.00027671,2]
[355120964,1740921047562,-1139.99,0.00027671,2]
[355120965,1740921047572,-760.17,0.00027671,2]
[355120966,1740921047581,-500.0,0.00027671,2]
[355120967,1740921047591,-1565.61,0.00027671,2]
[355120968,1740921047600,-704.29,0.00027671,2]
[355120969,1740921047609,-500.0,0.00027671,2]
[355120970,1740921047619,-1079.31,0.00027671,2]
[355120971,1740921047628,-500.0,0.00027671,2]
[355120972,1740921047638,-500.0,0.00027671,2]
[355120973,1740921047647,-500.0,0.00027671,2]
[355120974,1740921047657,-500.0,0.00027671,2]
[355120975,1740921047666,-4119.12,0.00027671,2]
[355120976,1740921047676,-3871.79,0.00027671,2]
[355120977,1740921047685,-500.0,0.00027671,2]
[355120978,1740921047695,-787.31,0.00027671,2]
[355120979,1740921047704,-717.47,0.00027671,2]
[355120980,1740921047715,-1235.29,0.00027671,2]
[355120981,1740921047725,-4875.99,0.00027671,2]
[355120982,1740921047734,-5586.84,0.00027671,2]
[355120983,1740921047744,-500.0,0.00027671,2]
[355120984,1740921047754,-1226.77,0.00027671,2]
[355120985,1740921047763,-678.44,0.00027671,2]
[355120986,1740921047774,-1429.87,0.00027671,2]
[355120987,1740921047784,-500.0,0.00027671,2]
[355120988,1740921047793,-1233.83,0.00027671,2]
[355120989,1740921047803,-5234.1,0.00027671,2]
[355120990,1740921047813,-928.83,0.00027671,2]
[355120991,1740921047822,-1249.9420456,0.00027671,2]
[355120992,1740921047837,-507.53028692,0.00027671,2]
[355120993,1740921049182,-515.811067,0.00027671,2]
[355120994,1740921049194,-475.33246739,0.00027671,2]
[355120995,1740921049207,-565.99524606,0.00027671,2]
[355120996,1740921049225,-423.95581672,0.00027671,2]
[355120997,1740921049242,-661.54307031,0.00027671,2]
[355120998,1740921049252,-2112.01,0.00027671,2]
[355120999,1740921049262,-552.46,0.00027702,2]
[355121000,1740921049272,-714.7,0.00027702,2]
[355121001,1740921049282,-1178.41487995,0.00027702,2]
[355121002,1740921049294,-677.42512005,0.00027702,2]
[355121003,1740921049304,-579.04,0.00027702,2]
[355121004,1740921049314,-7702.05,0.00027702,2]
[355121005,1740921049324,-1552.0,0.00027702,2]
[355121006,1740921049334,-500.0,0.00027702,2]
[355121007,1740921049344,-500.0,0.00027702,2]
[355121008,1740921049354,-4290.24,0.00027702,2]
[355121009,1740921049364,-500.0,0.00027702,2]
[355121010,1740921049374,-6664.78,0.00027702,2]
[355121011,1740921049383,-154.684622,0.00027702,2]
[355121012,1740921049393,-1859.83,0.00027702,2]
[355121013,1740921049403,-1507.67,0.00027739,2]
[355121014,1740921049412,-500.0,0.00027739,2]
[355121015,1740921049421,-4175.06,0.00027739,2]
[355121016,1740921049431,-1872.75,0.00027739,2]
[355121017,1740921049442,-4930.0,0.00027739,2]
[355121018,1740921049452,-3137.52,0.00027739,2]
[355121019,1740921049462,-4457.27,0.00027739,2]
[355121020,1740921049472,-721.9,0.00027739,2]
[355121021,1740921049482,-2426.84,0.00027739,2]
[355121022,1740921049527,-1181.52,0.00027739,2]
[355121023,1740921049537,-1320.81,0.00027739,2]
[355121024,1740921049547,-2012.98,0.00027739,2]
[355121025,1740921049558,-2245.9,0.00027739,2]
[355121026,1740921049567,-1932.16,0.00027739,2]
[355121027,1740921049577,-1204.01,0.00027739,2]
[355121028,1740921049587,-1010.77,0.00027739,2]
[355121029,1740921049596,-578.3,0.00027739,2]
[355121030,1740921049605,-1827.05,0.00027739,2]
[355121031,1740921049615,-2686.08,0.00027943,2]
[355121032,1740921049625,-2130.94,0.00027944,2]
[355121033,1740921049634,-500.0,0.00027944,2]
[355121034,1740921049644,-500.0,0.00027944,2]
[355121035,1740921049653,-764.8,0.00027944,2]
[355121036,1740921049663,-1873.41,0.00027944,2]
[355121037,1740921049672,-1559.77,0.00027944,2]
[355121038,1740921049681,-685.32,0.00027944,2]
[355121039,1740921049691,-2490.42,0.00027944,2]
[355121040,1740921049700,-2300.39,0.00027944,2]
[355121041,1740921049710,-3043.48,0.00027944,2]
[355121042,1740921049720,-500.0,0.00027944,2]
[355121043,1740921049729,-1639.31,0.00027944,2]
[355121044,1740921049738,-500.0,0.00027944,2]
[355121045,1740921049748,-3917.93,0.00027944,2]
[355121046,1740921049758,-1327.93,0.00027944,2]
[355121047,1740921049768,-500.0,0.00027944,2]
[355121048,1740921049777,-1982.59,0.00027944,2]
[355121049,1740921049786,-1139.99,0.00027945,2]
[355121050,1740921049795,-760.17,0.00027945,2]
[355121051,1740921049804,-329.83,0.00027945,2]
[355121052,1740921049813,-1565.61,0.00027945,2]
[355121053,1740921049823,-704.29,0.00027945,2]
[355121054,1740921049831,-406.9,0.00027945,2]
[355121055,1740921049841,-1079.31,0.00027945,2]
[355121056,1740921049854,-500.0,0.00027945,2]
[355121057,1740921049864,-298.79,0.00027945,2]
[355121058,1740921049873,-500.0,0.00027945,2]
[355121059,1740921049883,-500.0,0.00027945,2]
[355121060,1740921049892,-4119.12,0.00027945,2]
[355121061,1740921049902,-3871.79,0.00027945,2]
[355121062,1740921049911,-472.59,0.00027945,2]
[355121063,1740921049920,-787.31,0.00027945,2]
[355121064,1740921049930,-717.47,0.00027945,2]
[355121065,1740921049940,-1235.29,0.00027945,2]
[355121066,1740921049949,-4875.99,0.00027945,2]
[355121067,1740921049959,-5586.84,0.00027945,2]
[355121068,1740921049969,-500.0,0.00027945,2]
[355121069,1740921049978,-1226.77,0.00027945,2]
[355121070,1740921049987,-678.44,0.00027945,2]
[355121071,1740921049997,-1429.87,0.00027945,2]
[355121072,1740921050006,-370.16,0.00027945,2]
[355121073,1740921050016,-1233.83,0.00027945,2]
[355121074,1740921050026,-5234.1,0.00027945,2]
[355121075,1740921050035,-928.83,0.00027945,2]
[355121076,1740921050044,-4400.11,0.00027945,2]
[355121077,1740921050054,-2112.01,0.00027945,2]
[355121078,1740921050064,-552.46,0.00027976,2]
[355121079,1740921050073,-714.7,0.00027976,2]
[355121080,1740921050082,-1855.84,0.00027976,2]
[355121081,1740921050091,-579.04,0.00027976,2]
[355121082,1740921050102,-7702.05,0.00027976,2]
[355121083,1740921050111,-1552.0,0.00027976,2]
[355121084,1740921050121,-500.0,0.00027976,2]
[355121085,1740921050131,-500.0,0.00027976,2]
[355121086,1740921050140,-4290.24,0.00027976,2]
[355121087,1740921050149,-500.0,0.00027976,2]
[355121088,1740921050159,-6664.78,0.00027976,2]
[355121089,1740921050168,-1859.83,0.00027976,2]
[355121090,1740921050178,-2148.94253568,0.00028012,2]
[355121091,1740921050187,-1507.67,0.00028013,2]
[355121092,1740921050196,-500.0,0.00028013,2]
[355121093,1740921050205,-4175.06,0.00028013,2]
[355121094,1740921050216,-1872.75,0.00028013,2]
[355121095,1740921050226,-4930.0,0.00028013,2]
[355121096,1740921050235,-3137.52,0.00028013,2]
[355121097,1740921050245,-4457.27,0.00028013,2]
[355121098,1740921050254,-721.9,0.00028013,2]
[355121099,1740921050264,-2426.84,0.00028013,2]
[355121100,1740921050273,-1181.52,0.00028013,2]
[355121101,1740921050282,-1320.81,0.00028013,2]
[355121102,1740921050291,-2012.98,0.00028013,2]
[355121103,1740921050301,-2245.9,0.00028013,2]
[355121104,1740921050310,-1932.16,0.00028013,2]
[355121105,1740921050319,-1204.01,0.00028013,2]
[355121106,1740921050329,-1010.77,0.00028013,2]
[355121107,1740921050338,-578.3,0.00028013,2]
[355121108,1740921050348,-1827.05,0.00028013,2]
[355121109,1740921050357,-1031.0,0.00028072,5]
[355121110,1740921050367,-5212.96431868,0.00028119,2]
[355121111,1740921050376,-2455.89641696,0.00028176,5]
[355121112,1740921050386,-2686.08,0.00028217,2]
[355121113,1740921050396,-2130.94,0.00028218,2]
[355121114,1740921050405,-500.0,0.00028218,2]
[355121115,1740921050414,-500.0,0.00028218,2]
[355121116,1740921050423,-764.8,0.00028218,2]
[355121117,1740921050432,-1873.41,0.00028218,2]
[355121118,1740921050441,-1559.77,0.00028218,2]
[355121119,1740921050450,-685.32,0.00028218,2]
[355121120,1740921050459,-2490.42,0.00028218,2]
[355121121,1740921050470,-2300.39,0.00028218,2]
[355121122,1740921050479,-3043.48,0.00028218,2]
[355121123,1740921050489,-500.0,0.00028218,2]
[355121124,1740921050499,-1639.31,0.00028218,2]
[355121125,1740921050508,-500.0,0.00028218,2]
[355121126,1740921050517,-3917.93,0.00028218,2]
[355121127,1740921050526,-1327.93,0.00028218,2]
[355121128,1740921050536,-500.0,0.00028218,2]
[355121129,1740921050545,-1982.59,0.00028218,2]
[355121130,1740921050553,-1139.99,0.00028219,2]
[355121131,1740921050563,-760.17,0.00028219,2]
[355121132,1740921050572,-1565.61,0.00028219,2]
[355121133,1740921050582,-704.29,0.00028219,2]
[355121134,1740921050591,-1079.31,0.00028219,2]
[355121135,1740921050600,-500.0,0.00028219,2]
[355121136,1740921050609,-500.0,0.00028219,2]
[355121137,1740921050619,-500.0,0.00028219,2]
[355121138,1740921050628,-4119.12,0.00028219,2]
[355121139,1740921050637,-3871.79,0.00028219,2]
[355121140,1740921050646,-787.31,0.00028219,2]
[355121141,1740921050655,-717.47,0.00028219,2]
[355121142,1740921050664,-1235.29,0.00028219,2]
[355121143,1740921050674,-4875.99,0.00028219,2]
[355121144,1740921050683,-5586.84,0.00028219,2]
[355121145,1740921050692,-500.0,0.00028219,2]
[355121146,1740921050702,-1226.77,0.00028219,2]
[355121147,1740921050711,-678.44,0.00028219,2]
[355121148,1740921050720,-4000.0,0.00028219,2]
[355121149,1740921050730,-1429.87,0.00028219,2]
[355121150,1740921050739,-1233.83,0.00028219,2]
[355121151,1740921050748,-5234.1,0.00028219,2]
[355121152,1740921050758,-928.83,0.00028219,2]
[355121153,1740921050767,-4400.11,0.00028219,2]
[355121154,1740921050777,-2112.01,0.00028219,2]
[355121155,1740921050786,-552.46,0.0002825,2]
[355121156,1740921050795,-714.7,0.0002825,2]
[355121157,1740921050804,-1855.84,0.0002825,2]
[355121158,1740921050814,-579.04,0.0002825,2]
[355121159,1740921050824,-7702.05,0.0002825,2]
[355121160,1740921050833,-1552.0,0.0002825,2]
[355121161,1740921050843,-500.0,0.0002825,2]
[355121162,1740921050857,-500.0,0.0002825,2]
[355121163,1740921050867,-4290.24,0.0002825,2]
[355121164,1740921050876,-500.0,0.0002825,2]
[355121165,1740921050885,-6664.78,0.0002825,2]
[355121166,1740921050895,-154.684622,0.0002825,2]
[355121167,1740921050905,-1859.83,0.0002825,2]
[355121168,1740921050914,-1507.67,0.00028287,2]
[355121169,1740921050924,-500.0,0.00028287,2]
[355121170,1740921050934,-4175.06,0.00028287,2]
[355121171,1740921050943,-1872.75,0.00028287,2]
[355121172,1740921050953,-4930.0,0.00028287,2]
[355121173,1740921050963,-3137.52,0.00028287,2]
[355121174,1740921050974,-4457.27,0.00028287,2]
[355121175,1740921050984,-721.9,0.00028287,2]
[355121176,1740921050993,-2426.84,0.00028287,2]
[355121177,1740921051004,-1181.52,0.00028287,2]
[355121178,1740921051015,-1320.81,0.00028287,2]
[355121179,1740921051025,-2012.98,0.00028287,2]
[355121180,1740921051035,-2245.9,0.00028287,2]
[355121181,1740921051044,-1932.16,0.00028287,2]
[355121182,1740921051054,-1204.01,0.00028287,2]
[355121183,1740921051064,-1010.77,0.00028287,2]
[355121184,1740921051074,-578.3,0.00028287,2]
[355121185,1740921051084,-1827.05,0.00028287,2]
[355121186,1740921051094,-637.49,0.000283,2]
[355121187,1740921051104,-1203.86,0.00028491,2]
[355121188,1740921051114,-2686.08,0.00028491,2]
[355121189,1740921051124,-2130.94,0.00028492,2]
[355121190,1740921051134,-500.0,0.00028492,2]
[355121191,1740921051145,-500.0,0.00028492,2]
[355121192,1740921051155,-764.8,0.00028492,2]
[355121193,1740921051164,-1873.41,0.00028492,2]
[355121194,1740921051174,-1559.77,0.00028492,2]
[355121195,1740921051184,-685.32,0.00028492,2]
[355121196,1740921051194,-2490.42,0.00028492,2]
[355121197,1740921051204,-2300.39,0.00028492,2]
[355121198,1740921051215,-3043.48,0.00028492,2]
[355121199,1740921051225,-500.0,0.00028492,2]
[355121200,1740921051235,-1639.31,0.00028492,2]
[355121201,1740921051245,-500.0,0.00028492,2]
[355121202,1740921051255,-3917.93,0.00028492,2]
[355121203,1740921051265,-1327.93,0.00028492,2]
[355121204,1740921051275,-500.0,0.00028492,2]
[355121205,1740921051285,-1982.59,0.00028492,2]
[355121206,1740921051295,-1139.99,0.00028493,2]
[355121207,1740921051305,-760.17,0.00028493,2]
[355121208,1740921051314,-1565.61,0.00028493,2]
[355121209,1740921051323,-704.29,0.00028493,2]
[355121210,1740921051333,-1079.31,0.00028493,2]
[355121211,1740921051342,-500.0,0.00028493,2]
[355121212,1740921051352,-500.0,0.00028493,2]
[355121213,1740921051361,-500.0,0.00028493,2]
[355121214,1740921051371,-4119.12,0.00028493,2]
[355121215,1740921051381,-3871.79,0.00028493,2]
[355121216,1740921051390,-787.31,0.00028493,2]
[355121217,1740921051408,-717.47,0.00028493,2]
[355121218,1740921051418,-1235.29,0.00028493,2]
[355121219,1740921051428,-4875.99,0.00028493,2]
[355121220,1740921051437,-5586.84,0.00028493,2]
[355121221,1740921051446,-500.0,0.00028493,2]
[355121222,1740921051456,-1226.77,0.00028493,2]
[355121223,1740921051467,-678.44,0.00028493,2]
[355121224,1740921051477,-1429.87,0.00028493,2]
[355121225,1740921051486,-1233.83,0.00028493,2]
[355121226,1740921051496,-5234.1,0.00028493,2]
[355121227,1740921051506,-928.83,0.00028493,2]
[355121228,1740921051516,-4400.11,0.00028493,2]
[355121229,1740921051525,-2112.01,0.00028493,2]
[355121230,1740921051535,-552.46,0.00028524,2]
[355121231,1740921051544,-714.7,0.00028524,2]
[355121232,1740921051553,-1855.84,0.00028524,2]
[355121233,1740921051564,-579.04,0.00028524,2]
[355121234,1740921051573,-7702.05,0.00028524,2]
[355121235,1740921051583,-1552.0,0.00028524,2]
[355121236,1740921051592,-500.0,0.00028524,2]
[355121237,1740921051603,-500.0,0.00028524,2]
[355121238,1740921051613,-4290.24,0.00028524,2]
[355121239,1740921051623,-500.0,0.00028524,2]
[355121240,1740921051634,-6664.78,0.00028524,2]
[355121241,1740921051644,-154.684622,0.00028524,2]
[355121242,1740921051654,-1859.83,0.00028524,2]
[355121243,1740921051664,-1507.67,0.00028561,2]
[355121244,1740921051675,-459.66,0.00028561,2]
[355121245,1740921051685,-4175.06,0.00028561,2]
[355121246,1740921051695,-1872.75,0.00028561,2]
[355121247,1740921051706,-4930.0,0.00028561,2]
[355121248,1740921051717,-3137.52,0.00028561,2]
[355121249,1740921051727,-4457.27,0.00028561,2]
[355121250,1740921051738,-721.9,0.00028561,2]
[355121251,1740921051748,-2426.84,0.00028561,2]
[355121252,1740921051758,-1181.52,0.00028561,2]
[355121253,1740921051767,-1320.81,0.00028561,2]
[355121254,1740921051777,-2012.98,0.00028561,2]
[355121255,1740921051788,-2245.9,0.00028561,2]
[355121256,1740921051797,-1932.16,0.00028561,2]
[355121257,1740921051806,-1204.01,0.00028561,2]
[355121258,1740921051816,-1010.77,0.00028561,2]
[355121259,1740921051826,-578.3,0.00028561,2]
[355121260,1740921051836,-1827.05,0.00028561,2]
[355121261,1740921051848,-150.0,0.00028622,2]
[355121262,1740921051859,-5212.96431868,0.00028713,2]
[355121263,1740921051870,-2686.08,0.00028765,2]
[355121264,1740921051879,-2130.94,0.00028766,2]
[355121265,1740921051890,-500.0,0.00028766,2]
[355121266,1740921051900,-500.0,0.00028766,2]
[355121267,1740921051910,-764.8,0.00028766,2]
[355121268,1740921051920,-1873.41,0.00028766,2]
[355121269,1740921051931,-1559.77,0.00028766,2]
[355121270,1740921051941,-685.32,0.00028766,2]
[355121271,1740921051952,-2490.42,0.00028766,2]
[355121272,1740921051963,-2300.39,0.00028766,2]
[355121273,1740921051973,-3043.48,0.00028766,2]
[355121274,1740921051983,-500.0,0.00028766,2]
[355121275,1740921051994,-1639.31,0.00028766,2]
[355121276,1740921052003,-500.0,0.00028766,2]
[355121277,1740921052014,-3917.93,0.00028766,2]
[355121278,1740921052025,-1327.93,0.00028766,2]
[355121279,1740921052034,-500.0,0.00028766,2]
[355121280,1740921052045,-1139.99,0.00028767,2]
[355121281,1740921052054,-760.17,0.00028767,2]
[355121282,1740921052064,-1565.61,0.00028767,2]
[355121283,1740921052074,-704.29,0.00028767,2]
[355121284,1740921052084,-1079.31,0.00028767,2]
[355121285,1740921052094,-500.0,0.00028767,2]
[355121286,1740921052104,-500.0,0.00028767,2]
[355121287,1740921052114,-500.0,0.00028767,2]
[355121288,1740921052124,-4119.12,0.00028767,2]
[355121289,1740921052134,-3871.79,0.00028767,2]
[355121290,1740921052144,-787.31,0.00028767,2]
[355121291,1740921052154,-717.47,0.00028767,2]
[355121292,1740921052163,-1235.29,0.00028767,2]
[355121293,1740921052173,-4875.99,0.00028767,2]
[355121294,1740921052183,-5586.84,0.00028767,2]
[355121295,1740921052193,-500.0,0.00028767,2]
[355121296,1740921052203,-1226.77,0.00028767,2]
[355121297,1740921052213,-678.44,0.00028767,2]
[355121298,1740921052224,-1429.87,0.00028767,2]
[355121299,1740921052234,-1233.83,0.00028767,2]
[355121300,1740921052243,-5234.1,0.00028767,2]
[355121301,1740921052253,-928.83,0.00028767,2]
[355121302,1740921052262,-4400.11,0.00028767,2]
[355121303,1740921052272,-2112.01,0.00028767,2]
[355121304,1740921052281,-552.46,0.00028798,2]
[355121305,1740921052291,-714.7,0.00028798,2]
[355121306,1740921052301,-1855.84,0.00028798,2]
[355121307,1740921052310,-579.04,0.00028798,2]
[355121308,1740921052320,-7702.05,0.00028798,2]
[355121309,1740921052330,-1552.0,0.00028798,2]
[355121310,1740921052340,-500.0,0.00028798,2]
[355121311,1740921052350,-500.0,0.00028798,2]
[355121312,1740921052360,-4290.24,0.00028798,2]
[355121313,1740921052370,-500.0,0.00028798,2]
[355121314,1740921052382,-6664.78,0.00028798,2]
[355121315,1740921052392,-1859.83,0.00028798,2]
[355121316,1740921052402,-150.0,0.00028807,2]
[355121317,1740921052412,-1507.67,0.00028835,2]
[355121318,1740921052422,-4175.06,0.00028835,2]
[355121319,1740921052432,-1872.75,0.00028835,2]
[355121320,1740921052442,-4930.0,0.00028835,2]
[355121321,1740921052452,-3137.52,0.00028835,2]
[355121322,1740921052462,-4457.27,0.00028835,2]
[355121323,1740921052472,-721.9,0.00028835,2]
[355121324,1740921052483,-2426.84,0.00028835,2]
[355121325,1740921052493,-1181.52,0.00028835,2]
[355121326,1740921052502,-1320.81,0.00028835,2]
[355121327,1740921052512,-2012.98,0.00028835,2]
[355121328,1740921052522,-2245.9,0.00028835,2]
[355121329,1740921052532,-1932.16,0.00028835,2]
[355121330,1740921052542,-1204.01,0.00028835,2]
[355121331,1740921052551,-1010.77,0.00028835,2]
[355121332,1740921052562,-578.3,0.00028835,2]